bitfinex-derivatives/quotes_ETHF0:USTF0_20250224
["timestamp","ask_amount","ask_price","bid_price","bid_amount"]
[1740391914983,3.95146,2688.6,2688.3,0.00558857]
[1740391915186,0.74369,2688.4,2688.3,0.00558857]
[1740391915686,0.74383,2687.9,2687.8,3.2078]
[1740391916390,0.74383,2687.9,2687.8,3.95166]
[1740391916580,0.74383,2687.9,2687.8,3.2078]
[1740391918687,6.3508,2688.0,2687.6,0.00557807]
[1740391918985,0.74389,2687.7,2687.6,0.00557807]
[1740391920183,0.04765358,2688.1,2687.6,0.00557807]
[1740391920184,0.74388,2687.8,2687.6,3.95726807]
[1740391920489,0.74389,2687.7,2687.6,3.21337807]
[1740391921779,0.00555358,2688.1,2688.0,0.7438]
[1740391922383,0.74382,2688.0,2687.6,3.21337807]
[1740391922688,0.00555358,2688.1,2687.6,3.21337807]
[1740391922689,0.74386,2687.8,2687.6,3.95726807]
[1740391922885,1.86504358,2688.1,2687.6,3.21337807]
[1740391923088,0.74388,2687.8,2687.6,3.21337807]
[1740391923290,1.86504358,2688.1,2687.6,3.21337807]
[1740391923484,0.74389,2687.7,2687.6,3.21337807]
[1740391924086,0.74382,2688.0,2687.8,0.74386]
[1740391924496,0.74383,2687.9,2687.7,0.74387]
[1740391924879,0.74384,2687.9,2687.7,0.74387]
[1740391925075,0.00555358,2688.1,2687.7,0.74387]
[1740391925290,0.00555358,2688.1,2687.6,3.21337807]
[1740391927684,0.00555358,2688.1,2688.0,3.2078]
[1740391929185,3.126,2688.6,2688.0,3.2078]
[1740391929583,3.126,2688.6,2688.1,1.1601]
[1740391930196,3.123,2688.8,2688.1,1.1601]
[1740391930396,3.123,2688.8,2688.3,3.2078]
[1740391931088,3.2078,2689.0,2688.3,3.2078]
[1740391931287,0.5645,2689.3,2688.3,3.2078]
[1740391931484,3.124,2689.4,2689.0,3.2078]
[1740391931891,3.124,2689.4,2688.9,0.00557807]
[1740391932293,3.2078,2689.6,2688.9,1.86444807]
[1740391932294,3.125,2689.5,2688.9,1.86444807]
[1740391932489,0.74342,2689.4,2689.2,0.74346]
[1740391932886,3.125,2689.5,2689.0,3.2078]
[1740391933090,0.74346,2689.3,2689.1,0.74349]
[1740391933290,0.74345,2689.3,2689.1,0.74349]
[1740391933688,3.125,2689.5,2689.0,3.2078]
[1740391933894,0.74345,2689.3,2689.1,0.74349]
[1740391934393,3.125,2689.5,2689.2,0.74345]
[1740391934594,0.74343,2689.4,2689.2,0.74347]
[1740391935098,3.125,2689.5,2689.0,3.2078]
[1740391936101,6.3218,2689.6,2689.0,3.2078]
[1740391936603,3.2078,2689.6,2689.0,3.2078]
[1740391936992,0.5757,2690.0,2689.5,3.2078]
[1740391937192,3.6877,2690.0,2689.5,3.2078]
[1740391938097,3.112,2690.0,2689.5,3.2078]
[1740391938993,6.3168,2690.1,2689.5,3.2078]
[1740391939191,6.3168,2690.1,2689.6,0.5637]
[1740391939399,6.3168,2690.1,2689.6,1.13]
[1740391942598,6.3068,2690.1,2689.6,1.13]
[1740391942796,3.2078,2690.1,2689.6,1.13]
[1740391942996,3.2078,2690.1,2689.6,1.6891]
[1740391945303,3.1,2690.0,2689.5,3.2078]
[1740391945699,0.5772,2689.9,2689.5,3.2078]
[1740391946701,3.1,2690.0,2689.5,3.2078]
[1740391946903,3.1,2690.0,2689.6,0.5415]
[1740391947104,3.1,2690.0,2689.6,1.1088]
[1740391948104,3.1,2690.0,2689.5,3.2078]
[1740391949110,3.095,2690.0,2689.5,3.2078]
[1740391950005,3.2078,2690.1,2689.5,3.2078]
[1740391950210,3.2078,2690.7,2689.8,3.2078]
[1740391950508,3.2078,2690.7,2690.1,3.2078]
[1740391950904,3.094,2690.6,2690.1,3.2078]
[1740391951106,3.6832,2690.9,2690.2,4.3433]
[1740391951607,6.891,2690.9,2690.2,4.3433]
[1740391952012,6.889,2690.9,2690.2,4.3433]
[1740391952211,6.3018,2690.9,2690.2,4.3433]
[1740391955308,3.2078,2690.9,2690.2,4.3433]
[1740391957414,3.7534,2690.9,2690.2,4.3433]
[1740391963316,3.083,2691.1,2690.5,3.2078]
[1740391963515,3.2078,2691.2,2690.5,3.2078]
[1740391963817,6.2918,2691.5,2690.9,3.2078]
[1740391964113,3.2078,2691.5,2691.0,1.1685]
[1740391964310,3.086,2691.6,2691.0,1.1685]
[1740391966314,3.2078,2691.8,2691.0,1.1685]
[1740391966515,3.2078,2691.8,2691.0,2.41874446]
[1740391967117,5.06472,2691.8,2691.0,2.41874446]
[1740391967307,3.97306973,2691.8,2691.0,2.41874446]
[1740391967513,0.74291,2691.3,2691.1,0.74293]
[1740391967712,3.2078,2691.8,2691.0,2.41874446]
[1740391967912,0.74295,2691.1,2691.0,1.25024446]
[1740391968216,0.74299,2691.0,2690.6,3.2078]
[1740391968425,3.083,2691.4,2690.7,1.85763]
[1740391968621,0.74293,2691.2,2691.1,0.74294]
[1740391968911,3.083,2691.4,2691.0,0.74295]
[1740391969117,3.083,2691.4,2690.8,1.1219]
[1740391969318,0.74297,2691.1,2690.9,0.74298]
[1740391969719,5.06494,2691.5,2690.8,1.1219]
[1740391969920,0.74298,2691.0,2690.9,0.743]
[1740391970112,0.743,2690.9,2690.8,1.1219]
[1740391970615,0.743,2690.9,2690.8,1.86493]
[1740391971022,1.85731,2691.2,2690.7,1.27665]
[1740391971318,1.85731,2691.2,2690.7,0.5336]
[1740391971511,2.43704,2691.3,2690.9,0.74298]
[1740391971717,0.74293,2691.2,2691.1,0.74294]
[1740391972020,4.9392,2691.4,2690.7,0.5336]
[1740391972216,3.082,2691.4,2690.7,0.5336]
[1740391973519,3.082,2691.4,2690.9,3.2078]
[1740391973721,0.0462,2691.7,2690.9,3.2078]
[1740391974023,3.085,2691.6,2690.9,3.2078]
[1740391976123,3.2078,2691.5,2690.9,3.2078]
[1740391976524,3.97373789,2691.5,2690.9,3.2078]
[1740391979214,3.072,2691.4,2690.9,3.2078]
[1740391979417,3.83793789,2691.4,2690.9,3.2078]
[1740391981323,0.76593789,2691.4,2690.9,3.2078]
[1740391981620,3.2078,2691.5,2690.9,3.2078]
[1740391982022,3.7876,2691.8,2690.9,3.2078]
[1740391982222,3.07,2691.7,2690.9,3.2078]
[1740391984324,3.2078,2691.5,2690.9,3.2078]
[1740391984718,3.2078,2691.2,2690.7,0.5336]
[1740391984919,3.067,2691.1,2690.7,0.5336]
[1740391988929,3.067,2691.1,2690.5,3.7722]
[1740391991726,3.067,2691.1,2690.5,3.2078]
[1740391992121,3.2078,2690.8,2690.0,0.00557807]
[1740391992424,24.3761,2691.5,2690.0,0.00557807]
[1740391992425,3.2078,2690.4,2690.0,0.00557807]
[1740391992624,3.061,2690.3,2690.0,0.00557807]
[1740391993428,3.2078,2690.1,2690.0,0.00557807]
[1740391994234,3.95102,2690.1,2690.0,0.00557807]
[1740391995131,3.2078,2690.4,2690.0,0.00557807]
[1740391995332,3.80922,2690.1,2690.0,0.00557807]
[1740391998136,3.066,2690.1,2690.0,0.00557807]
[1740391999430,6.2738,2690.1,2690.0,0.00557807]
[1740392002742,12.2738,2690.1,2689.3,1.81914446]
[1740392002931,3.2078,2689.9,2689.3,0.5689]
[1740392004040,3.21337807,2689.9,2689.3,0.57447807]
[1740392005444,6.26637807,2689.9,2689.4,3.2078]
[1740392006337,0.00557807,2689.9,2689.7,3.2078]
[1740392006538,3.2078,2690.3,2689.8,1.1016]
[1740392007845,3.2078,2690.3,2689.7,3.2078]
[1740392010953,3.053,2690.2,2689.7,3.2078]
[1740392022658,3.81993939,2690.2,2689.7,3.2078]
[1740392023156,3.2078,2690.0,2689.5,0.5817]
[1740392023951,3.7926,2690.0,2689.5,0.5817]
[1740392028762,3.2078,2690.0,2689.5,0.5817]
[1740392028957,0.76693939,2690.1,2689.5,0.5817]
[1740392029158,3.81993939,2690.2,2689.5,0.5817]
[1740392032162,3.2078,2690.0,2689.5,0.5817]
[1740392035654,3.777,2690.0,2689.5,0.5817]
[1740392036960,0.76788279,2690.1,2689.7,3.2078]
[1740392037356,3.015,2690.2,2689.7,3.2078]
[1740392037759,3.78288279,2690.2,2689.7,3.2078]
[1740392038957,3.015,2690.2,2689.7,3.2078]
[1740392040264,3.015,2690.5,2690.0,3.2078]
[1740392040460,3.015,2690.5,2690.1,1.7268]
[1740392041062,3.2078,2690.6,2690.1,1.7268]
[1740392041365,0.74311,2690.5,2690.4,0.74314]
[1740392041563,5.06535,2690.9,2690.4,0.74314]
[1740392041763,3.015,2690.8,2690.4,0.74314]
[1740392041963,0.74314,2690.5,2690.3,3.2078]
[1740392042165,3.015,2690.8,2690.3,3.2078]
[1740392042166,0.74314,2690.4,2690.3,3.2078]
[1740392043166,0.5366,2690.6,2690.3,3.2078]
[1740392043556,0.5366,2690.6,2689.3,0.00557807]
[1740392043557,3.2078,2690.4,2689.5,3.2078]
[1740392043758,3.014,2690.3,2689.6,0.5868]
[1740392043962,3.2078,2690.1,2689.6,0.5868]
[1740392045563,0.5366,2690.0,2689.6,0.5868]
[1740392045868,3.014,2689.9,2689.6,0.5868]
[1740392046270,0.74333,2689.7,2689.6,0.5868]
[1740392046562,0.74336,2689.6,2689.5,3.2078]
[1740392049269,3.014,2689.9,2689.5,3.2078]
[1740392050265,3.014,2689.8,2689.5,3.2078]
[1740392050567,1.30367297,2690.0,2689.5,3.2078]
[1740392050767,3.014,2689.9,2689.5,3.2078]
[1740392051368,3.014,2689.9,2689.5,44.0078]
[1740392051561,3.014,2689.9,2689.5,3.2078]
[1740392055169,3.015,2690.0,2689.5,3.2078]
[1740392055368,3.015,2690.2,2689.5,3.2078]
[1740392055570,0.76686898,2690.4,2689.9,3.2078]
[1740392055767,3.78186898,2690.4,2690.0,1.691]
[1740392055966,3.015,2690.4,2690.0,1.691]
[1740392056564,3.7926,2690.9,2690.2,3.2078]
[1740392056769,3.014,2690.8,2690.2,3.2078]
[1740392056967,3.7926,2690.9,2690.2,3.2078]
[1740392057174,3.014,2690.8,2690.2,3.2078]
[1740392057673,6.8066,2690.9,2690.2,3.2078]
[1740392061471,6.2218,2690.9,2690.2,3.2078]
[1740392061671,3.7932,2691.2,2690.2,3.2078]
[1740392061867,3.014,2691.1,2690.2,3.2078]
[1740392062072,3.7932,2691.2,2690.2,3.2078]
[1740392062275,3.2078,2691.2,2690.2,3.2078]
[1740392062478,3.014,2691.1,2690.5,3.2078]
[1740392062675,3.014,2691.1,2690.6,1.6815]
[1740392062880,3.014,2691.3,2690.6,1.6815]
[1740392064279,3.78018909,2691.4,2690.6,1.6815]
[1740392064685,3.78018909,2691.4,2690.8,3.2078]
[1740392064892,0.76618909,2691.4,2690.8,3.2078]
[1740392065784,3.2078,2691.5,2690.8,3.2078]
[1740392066281,3.2078,2691.9,2690.9,1.25024446]
[1740392066481,6.2218,2691.9,2691.2,3.2078]
[1740392066681,3.2078,2691.9,2691.3,1.6462]
[1740392072687,3.013,2691.8,2691.3,1.6462]
[1740392074491,3.013,2691.8,2691.3,1.1069]
[1740392075486,3.013,2691.8,2691.2,4.45804446]
[1740392076490,3.013,2691.8,2691.2,3.2078]
[1740392078192,3.0587,2691.8,2691.2,3.2078]
[1740392079894,3.013,2691.8,2691.2,3.2078]
[1740392081993,3.2078,2691.6,2690.9,4.354]
[1740392082995,3.2078,2691.0,2690.1,3.2078]
[1740392083202,3.2078,2690.7,2690.1,3.2078]
[1740392083395,3.012,2690.6,2690.1,3.2078]
[1740392085002,3.012,2690.6,2690.2,0.569]
[1740392085592,3.012,2690.6,2690.2,1.1531]
[1740392088091,3.012,2690.6,2690.1,3.2078]
[1740392088298,3.012,2690.6,2689.9,0.5874]
[1740392088595,3.2078,2690.3,2689.9,0.5874]
[1740392088800,3.5495,2690.2,2689.9,0.5874]
[1740392089202,3.013,2690.2,2689.9,0.5874]
[1740392094911,3.013,2690.2,2689.8,0.00557807]
[1740392096119,3.2078,2690.0,2689.8,0.00557807]
[1740392096319,0.5765,2689.9,2689.8,0.00557807]
[1740392102922,3.2078,2690.0,2689.8,0.00557807]
[1740392103114,0.5914,2689.9,2689.8,0.00557807]
[1740392108725,6.5914,2689.9,2688.7,3.2078]
[1740392108924,3.2078,2689.1,2688.8,1.1016]
[1740392109127,3.014,2689.0,2688.8,1.1016]
[1740392109312,3.014,2689.0,2688.7,3.2078]
[1740392109622,3.5509,2689.0,2688.7,3.2078]
[1740392111128,3.014,2688.9,2688.7,3.2078]
[1740392111324,3.2078,2689.1,2688.8,1.7331]
[1740392111623,3.2078,2689.6,2689.0,3.2078]
[1740392112024,3.014,2689.8,2689.0,3.2078]
[1740392112815,3.014,2689.8,2689.3,3.2078]
[1740392113120,3.718,2691.0,2688.7,3.31517317]
[1740392113121,3.2078,2690.5,2689.6,3.2078]
[1740392113313,3.014,2690.4,2689.9,3.2078]
[1740392113626,3.014,2690.4,2690.0,1.1562]
[1740392113820,3.2078,2690.8,2690.1,0.5449]
[1740392113821,3.014,2690.6,2690.1,0.5449]
[1740392115522,3.2078,2690.8,2690.1,0.5449]
[1740392115726,3.014,2690.6,2690.1,0.5449]
[1740392116423,3.2078,2690.8,2690.1,0.5449]
[1740392116619,3.014,2690.7,2690.1,0.5449]
[1740392116819,3.2078,2690.5,2690.0,1.1562]
[1740392117019,3.2078,2690.2,2690.0,1.1562]
[1740392117330,3.2078,2690.2,2689.7,0.5693]
[1740392117523,3.2078,2690.2,2689.7,1.1237]
[1740392117719,3.2078,2690.2,2689.7,0.5544]
[1740392117926,3.2078,2690.2,2689.6,0.5407]
[1740392117927,3.7446,2690.2,2689.6,0.5407]
[1740392118125,3.2078,2689.9,2688.9,0.5544]
[1740392118326,3.2078,2689.3,2688.9,0.5544]
[1740392118630,3.013,2689.2,2688.9,0.5544]
[1740392119020,3.2078,2689.3,2688.7,0.5407]
[1740392119225,3.013,2689.2,2688.8,0.5744]
[1740392119523,3.013,2689.4,2688.8,3.7822]
[1740392119725,3.013,2689.4,2689.1,3.2078]
[1740392120219,3.013,2689.4,2689.2,0.5494]
[1740392121227,3.014,2689.6,2689.2,0.5494]
[1740392121426,3.014,2689.9,2689.4,3.2078]
[1740392121620,3.014,2689.9,2689.5,0.5402]
[1740392121823,3.014,2689.9,2689.5,1.1146]
[1740392122022,0.00557807,2690.3,2689.7,3.2078]
[1740392122222,0.00557807,2690.3,2690.1,3.2078]
[1740392122426,3.2078,2691.0,2690.2,1.143]
[1740392122730,6.2218,2691.0,2690.4,3.2078]
[1740392123128,3.2078,2691.0,2690.4,3.2078]
[1740392123425,3.013,2691.2,2690.8,3.2078]
[1740392123631,0.00557807,2691.0,2690.9,0.5707]
[1740392127031,3.21337807,2691.0,2690.5,0.5445]
[1740392127238,3.21337807,2691.0,2690.5,1.1233]
[1740392127536,3.2078,2690.7,2690.5,0.5788]
[1740392128428,3.013,2690.6,2690.5,0.5788]
[1740392128733,3.013,2690.7,2690.5,0.5788]
[1740392129230,3.013,2690.7,2690.4,0.00557807]
[1740392133438,3.2078,2690.9,2690.4,0.00557807]
[1740392133635,3.013,2690.8,2690.4,0.00557807]
[1740392134540,3.2078,2690.9,2690.4,0.00557807]
[1740392134734,3.013,2690.8,2690.4,0.00557807]
[1740392134933,3.5504,2690.8,2690.4,0.00557807]
[1740392137435,3.2078,2690.9,2690.4,0.00557807]
[1740392137436,3.013,2690.7,2690.4,0.00557807]
[1740392139242,6.2208,2690.7,2690.4,0.00557807]
[1740392139646,3.013,2690.7,2690.4,0.00557807]
[1740392139944,3.2078,2690.7,2690.4,0.00557807]
[1740392141439,3.013,2690.9,2690.4,3.21337807]
[1740392141638,3.013,2690.9,2690.5,1.1157]
[1740392141834,3.013,2690.9,2690.6,0.5789]
[1740392142046,0.00557807,2691.0,2690.7,3.2078]
[1740392144340,3.012,2690.9,2690.7,3.2078]
[1740392150550,3.012,2690.9,2690.6,0.5789]
[1740392151551,3.5794,2690.9,2690.5,0.5673]
[1740392151750,3.2078,2690.8,2690.4,0.00557807]
[1740392152149,3.97618489,2690.8,2690.4,0.00557807]
[1740392152858,3.2078,2690.5,2690.4,0.00557807]
[1740392153053,6.2198,2690.5,2690.4,0.00557807]
[1740392153255,6.2198,2690.5,2689.7,0.5805]
[1740392153256,12.2198,2690.5,2689.6,1.127]
[1740392153553,3.2078,2690.1,2689.6,0.5658]
[1740392153762,3.012,2690.0,2689.6,0.5658]
[1740392155057,3.012,2690.0,2689.5,0.00557807]
[1740392155757,3.2078,2689.6,2689.5,0.00557807]
[1740392155958,6.2198,2689.6,2689.5,0.00557807]
[1740392156156,12.2198,2689.6,2688.9,3.2078]
[1740392156461,3.2078,2689.3,2688.9,3.2078]
[1740392156655,3.013,2689.2,2688.9,3.2078]
[1740392156851,3.2078,2689.0,2688.3,1.25024446]
[1740392157054,3.2078,2689.0,2688.1,3.7779]
[1740392157354,3.2078,2688.2,2687.3,3.2078]
[1740392157552,2.987,2689.0,2687.1,1.6858]
[1740392157553,3.2078,2687.9,2687.1,1.6858]
[1740392157757,3.013,2687.8,2687.1,45.6936]
[1740392158068,3.013,2687.8,2687.5,0.00557807]
[1740392161663,3.2078,2687.9,2687.5,0.00557807]
[1740392162078,0.5595,2687.8,2687.5,0.00557807]
[1740392167168,3.2492,2687.9,2687.5,0.00557807]
[1740392167169,3.015,2687.7,2687.5,0.00557807]
[1740392167877,3.2078,2687.9,2687.5,0.00557807]
[1740392168070,3.015,2687.9,2687.5,0.54647807]
[1740392168272,6.2228,2688.2,2687.6,0.5913]
[1740392168676,6.2228,2688.2,2687.7,3.2078]
[1740392168873,0.5653,2688.6,2687.7,3.2078]
[1740392169074,3.015,2688.5,2688.0,3.2078]
[1740392169274,3.21337807,2688.8,2688.3,3.2078]
[1740392169275,0.00557807,2688.8,2688.3,3.2078]
[1740392169671,0.00557807,2688.8,2688.4,1.1322]
[1740392170381,0.00557807,2688.8,2688.2,1.25024446]
[1740392170382,3.2078,2688.6,2688.2,1.25024446]
[1740392170583,3.2078,2688.6,2687.5,3.02057807]
[1740392170584,3.015,2688.5,2687.6,2.40454446]
[1740392170882,3.015,2688.5,2687.6,1.707]
[1740392171178,3.015,2688.5,2687.8,3.2078]
[1740392171379,3.2078,2688.0,2687.6,1.707]
[1740392171781,6.2248,2688.0,2687.6,1.1157]
[1740392171976,6.2248,2688.0,2687.6,0.5527]
[1740392172374,6.2248,2688.0,2687.5,0.00557807]
[1740392173777,0.5749,2687.9,2687.5,0.00557807]
[1740392173976,3.016,2687.8,2687.5,0.00557807]
[1740392175180,3.2078,2687.7,2687.5,0.00557807]
[1740392175683,9.2078,2687.7,2687.5,0.00557807]
[1740392177882,3.2078,2687.7,2687.5,0.00557807]
[1740392178276,9.2078,2687.7,2687.5,0.00557807]
[1740392179285,9.2078,2687.7,2686.7,3.2078]
[1740392179479,3.2078,2686.9,2686.2,0.5799]
[1740392179693,3.2078,2686.6,2686.2,0.5799]
[1740392179879,3.016,2686.5,2686.2,0.5799]
[1740392181487,3.016,2686.5,2686.2,1.1222]
[1740392181686,0.00557807,2686.6,2686.3,3.2078]
[1740392182679,0.00557807,2686.6,2686.2,1.1222]
[1740392183778,0.00557807,2686.6,2686.1,0.00557807]
[1740392184086,3.2078,2686.4,2686.1,0.00557807]
[1740392184277,3.016,2686.3,2686.1,0.00557807]
[1740392188181,3.5535,2686.3,2686.1,0.00557807]
[1740392190991,3.2078,2686.4,2686.1,0.00557807]
[1740392193892,12.9258,2686.4,2686.1,0.00557807]
[1740392194088,12.9258,2686.4,2685.2,0.5386]
[1740392194289,3.2078,2685.3,2684.6,3.2078]
[1740392194490,3.2078,2685.0,2684.4,3.2078]
[1740392194684,3.026,2684.9,2684.0,0.5386]
[1740392194889,3.2078,2684.6,2684.0,0.5386]
[1740392195096,3.031,2684.5,2684.0,0.5386]
[1740392195389,3.031,2684.5,2684.0,0.54417807]
[1740392196191,3.21337807,2684.6,2684.0,0.54417807]
[1740392196392,3.035,2684.5,2684.0,0.54417807]
[1740392196992,3.2078,2684.3,2684.0,0.00557807]
[1740392197990,3.21337807,2684.6,2684.0,3.21337807]
[1740392198188,6.25737807,2684.6,2684.1,1.6608]
[1740392198991,6.25737807,2684.6,2684.0,0.00557807]
[1740392199402,3.2078,2684.2,2684.0,0.00557807]
[1740392199599,3.05,2684.1,2684.0,0.00557807]
[1740392200494,3.2078,2684.2,2684.0,0.00557807]
[1740392200684,3.049,2684.1,2684.0,0.00557807]
[1740392203198,3.048,2684.1,2684.0,0.00557807]
[1740392206392,9.048,2684.1,2684.0,0.00557807]
[1740392206997,3.048,2684.1,2684.0,0.00557807]
[1740392207593,9.048,2684.1,2684.0,0.00557807]
[1740392207793,3.048,2684.1,2684.0,0.00557807]
[1740392207993,9.048,2684.1,2684.0,0.00557807]
[1740392208796,9.048,2684.1,2683.2,1.118]
[1740392209003,3.2078,2683.5,2682.6,3.7769]
[1740392209195,3.061,2683.4,2682.7,1.1042]
[1740392210093,3.061,2683.4,2682.8,0.00375373]
[1740392212100,3.2078,2683.5,2682.9,3.2078]
[1740392213705,3.059,2683.4,2682.9,3.2078]
[1740392214499,3.2078,2683.5,2682.9,3.2078]
[1740392214699,3.057,2683.4,2682.9,3.2078]
[1740392218309,3.2078,2683.2,2682.8,0.00375373]
[1740392218507,3.2078,2682.9,2682.8,0.00375373]
[1740392218809,6.2668,2682.9,2682.8,0.00375373]
[1740392221298,12.2668,2682.9,2682.8,0.00375373]
[1740392221800,6.2668,2682.9,2682.8,0.00375373]
[1740392224203,12.2668,2682.9,2681.6,3.2078]
[1740392224403,3.2078,2682.4,2682.0,0.5712]
[1740392224711,3.111,2682.9,2682.2,3.2078]
[1740392225116,3.111,2682.9,2682.4,3.2078]
[1740392228209,3.2078,2682.8,2682.3,0.551]
[1740392228915,3.7981,2682.8,2682.0,0.5712]
[1740392229111,3.2078,2682.5,2682.0,0.5712]
[1740392229311,3.104,2682.4,2682.0,0.5712]
[1740392230406,3.2078,2682.2,2681.4,1.0877]
[1740392230611,3.2078,2682.2,2681.5,3.7553]
[1740392230813,3.2078,2682.2,2681.5,0.5475]
[1740392231023,3.2078,2681.7,2680.6,3.2078]
[1740392231318,3.2078,2681.3,2680.6,3.2078]
[1740392231513,3.129,2681.2,2680.7,0.5647]
[1740392231912,3.2078,2681.0,2680.3,4.2962]
[1740392232116,3.2078,2680.7,2679.9,3.2078]
[1740392232322,3.137,2680.6,2679.9,3.2078]
[1740392233126,3.141,2680.9,2680.4,3.2078]
[1740392233411,3.2078,2681.1,2680.5,1.6836]
[1740392234211,3.148,2681.0,2680.5,1.6836]
[1740392234411,3.2078,2681.1,2680.5,1.6836]
[1740392234612,6.3608,2681.1,2680.5,1.6836]
[1740392236619,3.2078,2681.1,2680.5,1.6836]
[1740392236814,3.152,2681.0,2680.5,1.6836]
[1740392237014,3.152,2680.9,2680.5,1.6836]
[1740392237414,3.152,2680.9,2680.8,0.007889]
[1740392238323,6.3638,2681.1,2680.8,0.007889]
[1740392238822,3.16258857,2681.4,2680.9,3.2078]
[1740392239422,3.155,2681.3,2680.8,0.007889]
[1740392239612,3.21338857,2681.4,2680.9,3.2078]
[1740392239813,0.00558857,2681.4,2681.2,3.2078]
[1740392240019,3.162,2681.7,2681.3,1.7146]
[1740392240323,3.2078,2682.2,2681.3,1.7146]
[1740392240524,3.164,2682.3,2681.8,3.2078]
[1740392240724,3.2078,2682.8,2682.1,3.2078]
[1740392240922,3.165,2682.7,2682.1,4.45804446]
[1740392241116,3.17058857,2682.7,2682.2,0.58918857]
[1740392241313,0.00558857,2682.7,2682.2,0.58918857]
[1740392241517,0.00558857,2682.7,2682.6,3.2078]
[1740392241823,0.00558857,2682.7,2682.2,3.79698857]
[1740392242327,3.169,2682.6,2682.2,0.58918857]
[1740392243425,6.3768,2682.6,2682.2,0.58918857]
[1740392243623,6.3768,2682.6,2682.2,0.00558857]
[1740392243820,3.2078,2682.3,2682.2,0.00558857]
[1740392244127,3.2078,2682.6,2682.2,0.00558857]
[1740392244323,6.3868,2682.6,2682.2,0.00558857]
[1740392244627,0.00558857,2682.7,2682.5,3.2078]
[1740392244823,0.00558857,2682.7,2682.6,1.7187]
[1740392246029,3.18858857,2682.7,2682.6,1.7187]
[1740392246528,0.00558857,2682.7,2682.6,1.7187]
[1740392248819,3.2078,2683.0,2682.6,7.7187]
[1740392249025,3.2078,2683.4,2682.8,3.2078]
[1740392249525,3.2078,2683.4,2682.8,6.4068]
[1740392249723,3.21338857,2683.4,2682.8,6.4068]
[1740392249923,0.00558857,2683.4,2683.1,3.2078]
[1740392250321,0.00558857,2683.4,2683.1,9.2078]
[1740392250533,3.211,2684.7,2683.2,3.211]
[1740392250830,3.211,2684.7,2683.8,3.2078]
[1740392251018,3.211,2684.7,2684.2,3.2078]
[1740392251332,3.215,2684.6,2684.2,3.2078]
[1740392251928,0.00558857,2684.7,2684.2,3.2078]
[1740392255351,0.00558857,2684.7,2684.5,3.2078]
[1740392255856,0.00558857,2684.7,2684.6,0.5349]
[1740392257440,6.4138,2685.2,2684.6,0.5349]
[1740392257441,3.2078,2685.5,2684.6,6.5349]
[1740392257643,6.4098,2685.5,2684.9,3.2078]
[1740392257841,3.2078,2685.8,2685.2,3.2078]
[1740392258033,3.2078,2685.8,2685.3,0.5349]
[1740392258737,3.21338857,2685.8,2685.3,1.79073303]
[1740392259834,0.00558857,2685.8,2685.7,3.2078]
[1740392260337,0.00558857,2685.8,2685.4,3.7565]
[1740392263535,3.21338857,2685.8,2685.3,0.00558857]
[1740392263730,3.2078,2685.5,2685.3,0.00558857]
[1740392263931,3.199,2685.4,2685.3,0.00558857]
[1740392264132,3.205,2685.4,2685.3,0.00558857]
[1740392266240,3.205,2685.4,2685.3,0.00207987]
[1740392266934,3.2078,2685.6,2685.3,0.00207987]
[1740392267329,3.21358857,2685.8,2685.3,0.00207987]
[1740392267529,3.21358857,2685.8,2685.3,1.08017987]
[1740392268135,3.21358857,2685.8,2685.3,0.54347987]
[1740392269838,3.21358857,2685.8,2685.3,0.00207987]
[1740392271228,0.00558857,2685.8,2685.3,0.00207987]
[1740392271428,3.2078,2685.6,2685.3,0.00207987]
[1740392271632,1.1744,2685.5,2685.3,0.00207987]
[1740392273135,1.95042437,2685.5,2685.3,0.00207987]
[1740392273641,1.1744,2685.5,2684.3,3.2078]
[1740392273841,3.2078,2685.1,2684.3,3.2078]
[1740392274036,3.192,2685.0,2684.3,3.2078]
[1740392274640,3.192,2685.0,2684.4,0.00558857]
[1740392278741,3.2078,2685.1,2684.4,0.00558857]
[1740392278941,3.179,2684.9,2684.4,0.00558857]
[1740392279140,0.5486,2684.8,2684.4,0.00558857]
[1740392280442,3.179,2684.9,2684.4,0.00558857]
[1740392281542,3.2078,2684.5,2684.4,0.00558857]
[1740392281747,3.7729,2684.9,2684.4,0.00558857]
[1740392281940,3.186,2684.8,2684.4,0.00558857]
[1740392282645,3.96678693,2684.8,2684.4,0.00558857]
[1740392283347,3.2078,2684.6,2684.4,0.00558857]
[1740392284652,9.98858693,2684.6,2683.4,3.2078]
[1740392284846,3.2078,2684.0,2683.4,3.2078]
[1740392285045,3.188,2683.9,2683.4,3.2078]
[1740392285448,3.778,2683.9,2683.4,3.2078]
[1740392285844,3.2078,2683.7,2683.4,0.00558857]
[1740392287949,0.5508,2683.6,2683.4,0.00558857]
[1740392288148,3.181,2683.5,2682.7,3.2078]
[1740392288351,3.2078,2683.2,2682.7,3.2078]
[1740392288552,3.185,2683.1,2682.7,3.2078]
[1740392289648,3.185,2683.1,2682.6,0.00558857]
[1740392289853,3.2078,2682.9,2682.6,0.00558857]
[1740392290152,0.5485,2682.8,2682.6,0.00558857]
[1740392290347,3.187,2682.7,2682.6,0.00558857]
[1740392291354,3.7626,2682.7,2682.6,0.00558857]
[1740392294749,0.5756,2682.7,2682.6,0.00558857]
[1740392294951,3.5355,2682.8,2682.6,0.00558857]
[1740392295157,3.178,2682.7,2682.6,0.00558857]
[1740392299557,3.5355,2682.8,2682.6,0.00558857]